fUSD/lending_fUSD_20250206
["ID","MTS","AMOUNT","RATE_DAILY","PERIOD"]
[351961148,1738861874449,-882.18,0.00018492,2]
[351961149,1738861874458,-321.56740331,0.00018492,2]
[351961150,1738861874468,-1093.09,0.00018492,2]
[351961151,1738861874478,-801.19,0.00018492,2]
[351961152,1738861874488,-735.64,0.00018492,2]
[351961153,1738861874498,-773.55,0.00018492,2]
[351961154,1738861874509,-512.91,0.00018492,2]
[351961155,1738861874519,-550.45,0.00018492,2]
[351961156,1738861874528,-647.51,0.00018492,2]
[351961157,1738861874538,-612.38,0.00018492,2]
[351961158,1738861874548,-500.0,0.00018492,2]
[351961159,1738861874559,-980.57,0.00018492,2]
[351961160,1738861874568,-515.98,0.00018492,2]
[351961161,1738861874578,-795.41,0.00018492,2]
[351961162,1738861874588,-500.0,0.00018492,2]
[351961163,1738861874597,-1166.1,0.00018492,2]
[351961164,1738861874607,-841.63,0.00018492,2]
[351961165,1738861874617,-564.64,0.00018492,2]
[351961166,1738861874629,-842.75,0.00018492,2]
[351961167,1738861874639,-549.06,0.00018492,2]
[351961168,1738861874651,-500.0,0.00018492,2]
[351961169,1738861874660,-838.7,0.00018492,2]
[351961170,1738861874670,-871.1,0.00018492,2]
[351961171,1738861874680,-500.0,0.00018492,2]
[351961172,1738861874690,-549.37,0.00018492,2]
[351961173,1738861874700,-888.81,0.00018492,2]
[351961174,1738861874709,-635.82,0.00018492,2]
[351961175,1738861874720,-500.0,0.00018492,2]
[351961176,1738861874729,-758.24,0.00018492,2]
[351961177,1738861874739,-887.86,0.00018492,2]
[351961178,1738861874749,-751.66,0.00018492,2]
[351961179,1738861874759,-817.88,0.00018492,2]
[351961180,1738861874769,-572.42,0.00018492,2]
[351961181,1738861874778,-500.0,0.00018492,2]
[351961182,1738861874789,-754.86,0.00018492,2]
[351961183,1738861874799,-678.78,0.00018492,2]
[351961184,1738861874809,-661.11,0.00018492,2]
[351961185,1738861874819,-500.0,0.00018492,2]
[351961186,1738861874829,-500.0,0.00018492,2]
[351961187,1738861874839,-500.0,0.00018492,2]
[351961188,1738861874849,-500.0,0.00018492,2]
[351961189,1738861874859,-500.0,0.00018492,2]
[351961190,1738861874870,-505.27,0.00018492,2]
[351961191,1738861874880,-500.0,0.00018492,2]
[351961192,1738861874892,-524.10216365,0.00018492,2]
[351961193,1738861874902,-500.0,0.00018492,2]
[351961194,1738861874912,-542.84,0.00018492,2]
[351961195,1738861874921,-500.0,0.00018492,2]
[351961196,1738861874931,-568.48,0.00018492,2]
[351961197,1738861874941,-500.0,0.00018492,2]
[351961198,1738861874951,-810.69,0.00018492,2]
[351961199,1738861874961,-500.0,0.00018492,2]
[351961200,1738861874970,-205.0,0.0001851,2]
[351961201,1738861874981,-294.60226624,0.00018528,3]
[351961202,1738861874991,-2026.25838455,0.00018529,2]
[351961203,1738861875000,-200.0,0.0001854,2]
[351961204,1738861875010,-200.0,0.0001854,2]
[351961205,1738861875019,-200.0,0.0001854,2]
[351961206,1738861875029,-200.0,0.0001854,2]
[351961207,1738861875039,-322.96236687,0.00018574,2]
[351961208,1738861875048,-154.65,0.000186,2]
[351961209,1738861875058,-154.65,0.000186,2]
[351961210,1738861875068,-4943.19983026,0.0001862,2]
[351961211,1738861875077,-677.64,0.00018627,2]
[351961212,1738861875087,-2320.36,0.00018627,2]
[351961213,1738861875097,-1057.3,0.00018627,2]
[351961214,1738861875107,-1390.44,0.00018627,2]
[351961215,1738861875116,-702.27,0.00018627,2]
[351961216,1738861875126,-1330.76,0.00018627,2]
[351961217,1738861875136,-1549.77,0.00018627,2]
[351961218,1738861875146,-1149.66,0.00018627,2]
[351961219,1738861875157,-500.0,0.00018627,2]
[351961220,1738861875167,-1130.88,0.00018627,2]
[351961221,1738861875320,-1058.42,0.00018627,2]
[351961222,1738861875347,-591.92,0.00018627,2]
[351961223,1738861875358,-919.01,0.00018627,2]
[351961224,1738861875368,-1259.14,0.00018627,2]
[351961225,1738861875378,-2902.47,0.00018627,2]
[351961226,1738861875387,-1080.79,0.00018627,2]
[351961227,1738861875398,-1591.11,0.00018627,2]
[351961228,1738861875408,-1302.97,0.00018627,2]
[351961229,1738861875418,-1528.37,0.00018627,2]
[351961230,1738861875427,-1378.0,0.00018627,2]
[351961231,1738861875437,-1928.71,0.00018627,2]
[351961232,1738861875447,-1701.03,0.00018627,2]
[351961233,1738861875457,-1215.91,0.00018627,2]
[351961234,1738861875467,-1505.03,0.00018627,2]
[351961235,1738861875476,-3013.77,0.00018627,2]
[351961236,1738861875486,-936.5,0.00018627,2]
[351961237,1738861875495,-1793.39,0.00018627,2]
[351961238,1738861875505,-1477.06,0.00018627,2]
[351961239,1738861875514,-1577.4,0.00018627,2]
[351961240,1738861875524,-5300.74,0.00018627,2]
[351961241,1738861875533,-1169.73,0.00018627,2]
[351961242,1738861875543,-2574.15,0.00018627,2]
[351961243,1738861875552,-2515.4,0.00018627,2]
[351961244,1738861875561,-2027.32,0.00018627,2]
[351961245,1738861875571,-2110.85,0.00018627,2]
[351961246,1738861875579,-1476.55,0.00018627,2]
[351961247,1738861875589,-1529.46,0.00018627,2]
[351961248,1738861875598,-2849.47,0.00018627,2]
[351961249,1738861875608,-1830.91,0.00018627,2]
[351961250,1738861875618,-3547.39,0.00018627,2]
[351961251,1738861875627,-1971.2,0.00018627,2]
[351961252,1738861875637,-1234.07,0.00018627,2]
[351961253,1738861875648,-500.0,0.00018627,2]
[351961254,1738861875658,-1544.59,0.00018627,2]
[351961255,1738861875667,-1656.43,0.00018627,2]
[351961256,1738861875677,-1394.51,0.00018627,2]
[351961257,1738861875688,-3743.69,0.00018627,2]
[351961258,1738861875698,-963.12,0.00018627,2]
[351961259,1738861875708,-1700.26,0.00018627,2]
[351961260,1738861875718,-1311.59,0.00018627,2]
[351961261,1738861875727,-1736.78,0.00018627,2]
[351961262,1738861875737,-1017.17,0.00018627,2]
[351961263,1738861875746,-576.03,0.00018628,2]
[351961264,1738861875756,-568.39,0.00018628,2]
[351961265,1738861875765,-500.0,0.00018628,2]
[351961266,1738861875775,-1104.41,0.00018628,2]
[351961267,1738861875784,-1065.42,0.00018628,2]
[351961268,1738861875793,-689.15,0.00018628,2]
[351961269,1738861875803,-613.15684846,0.00018628,2]
[351961270,1738861875812,-500.0,0.00018628,2]
[351961271,1738861875822,-500.0,0.00018628,2]
[351961272,1738861875831,-500.0,0.00018628,2]
[351961273,1738861875841,-1002.74,0.00018628,2]
[351961274,1738861875851,-692.54,0.00018628,2]
[351961275,1738861875861,-738.1,0.00018628,2]
[351961276,1738861875870,-595.37,0.00018628,2]
[351961277,1738861875880,-500.0,0.00018628,2]
[351961278,1738861875890,-863.61,0.00018628,2]
[351961279,1738861875901,-645.84,0.00018628,2]
[351961280,1738861875911,-500.0,0.00018628,2]
[351961281,1738861875921,-596.44,0.00018628,2]
[351961282,1738861875930,-800.76,0.00018628,2]
[351961283,1738861875940,-777.26,0.00018628,2]
[351961284,1738861875950,-500.0,0.00018628,2]
[351961285,1738861875959,-548.07,0.00018628,2]
[351961286,1738861875969,-227.2,0.00018628,2]
[351961287,1738861875980,-500.0,0.00018628,2]
[351961288,1738861875989,-500.0,0.00018628,2]
[351961289,1738861875999,-672.55,0.00018628,2]
[351961290,1738861876010,-500.0,0.00018628,2]
[351961291,1738861876020,-874.6,0.00018628,2]
[351961292,1738861876031,-526.63354731,0.00018628,2]
[351961293,1738861876041,-642.87,0.00018628,2]
[351961294,1738861876051,-607.11,0.00018628,2]
[351961295,1738861876061,-500.0,0.00018628,2]
[351961296,1738861876070,-500.0,0.00018628,2]
[351961297,1738861876081,-1058.07,0.00018628,2]
[351961298,1738861876092,-514.1,0.00018628,2]
[351961299,1738861876103,-2325.74,0.00018628,2]
[351961300,1738861876114,-577.77,0.00018628,2]
[351961301,1738861876124,-500.0,0.00018628,2]
[351961302,1738861876135,-500.0,0.00018628,2]
[351961303,1738861876150,-500.0,0.00018628,2]
[351961304,1738861876162,-500.0,0.00018628,2]
[351961305,1738861876172,-292.39232358,0.00018628,2]
[351961306,1738861876187,-910.94,0.00018628,2]
[351961307,1738861876198,-589.83,0.00018628,2]
[351961308,1738861876209,-500.0,0.00018628,2]
[351961309,1738861876219,-500.0,0.00018628,2]
[351961310,1738861876230,-500.0,0.00018628,2]
[351961311,1738861876240,-785.95,0.00018628,2]
[351961312,1738861876250,-812.17,0.00018628,2]
[351961313,1738861876260,-500.0,0.00018628,2]
[351961314,1738861876271,-970.04,0.00018628,2]
[351961315,1738861876284,-550.87,0.00018628,2]
[351961316,1738861876294,-500.0,0.00018628,2]
[351961317,1738861876304,-622.89,0.00018628,2]
[351961318,1738861876315,-500.0,0.00018628,2]
[351961319,1738861876324,-940.72,0.00018628,2]
[351961320,1738861876335,-500.0,0.00018628,2]
[351961321,1738861876344,-527.23,0.00018628,2]
[351961322,1738861876354,-687.44,0.00018628,2]
[351961323,1738861876365,-865.53,0.00018628,2]
[351961324,1738861876375,-646.69,0.00018628,2]
[351961325,1738861876385,-500.0,0.00018628,2]
[351961326,1738861876399,-500.0,0.00018628,2]
[351961327,1738861876408,-1138.12,0.00018628,2]
[351961328,1738861876418,-1066.17,0.00018628,2]
[351961329,1738861876428,-500.0,0.00018628,2]
[351961330,1738861876437,-500.0,0.00018628,2]
[351961331,1738861876447,-500.0,0.00018628,2]
[351961332,1738861876457,-1133.21,0.00018628,2]
[351961333,1738861876467,-1379.38,0.00018628,2]
[351961334,1738861876477,-1088.33,0.00018628,2]
[351961335,1738861876487,-2580.85,0.00018628,2]
[351961336,1738861876497,-500.0,0.00018628,2]
[351961337,1738861876507,-507.71,0.00018628,2]
[351961338,1738861876517,-570.24,0.00018628,2]
[351961339,1738861876527,-500.0,0.00018628,2]
[351961340,1738861876536,-829.91,0.00018628,2]
[351961341,1738861876546,-500.0,0.00018628,2]
[351961342,1738861876555,-501.42,0.00018628,2]
[351961343,1738861876564,-1418.09,0.00018628,2]
[351961344,1738861876574,-699.42,0.00018628,2]
[351961345,1738861876583,-1474.87,0.00018628,2]
[351961346,1738861876593,-500.0,0.00018628,2]
[351961347,1738861876602,-953.52,0.00018628,2]
[351961348,1738861876611,-500.0,0.00018628,2]
[351961349,1738861876620,-500.0,0.00018628,2]
[351961350,1738861876629,-902.61,0.00018628,2]
[351961351,1738861876639,-500.0,0.00018628,2]
[351961352,1738861876652,-1661.17,0.00018628,2]
[351961353,1738861876661,-1847.77,0.00018628,2]
[351961354,1738861876671,-1733.71,0.00018628,2]
[351961355,1738861876680,-625.07,0.00018628,2]
[351961356,1738861876690,-667.58,0.00018628,2]
[351961357,1738861876700,-1416.66,0.00018628,2]
[351961358,1738861876709,-500.0,0.00018628,2]
[351961359,1738861876720,-211.10624289,0.00018628,2]
[351961360,1738861876730,-1420.72,0.00018628,2]
[351961361,1738861876739,-1568.96,0.00018628,2]
[351961362,1738861876749,-672.97,0.00018628,2]
[351961363,1738861876760,-843.46,0.00018628,2]
[351961364,1738861876770,-1370.61,0.00018628,2]
[351961365,1738861876781,-500.0,0.00018628,2]
[351961366,1738861876790,-753.37,0.00018628,2]
[351961367,1738861876800,-1322.14,0.00018628,2]
[351961368,1738861876809,-2840.59,0.00018628,2]
[351961369,1738861876819,-500.0,0.00018628,2]
[351961370,1738861876828,-521.51,0.00018628,2]
[351961371,1738861876838,-3947.98,0.00018628,2]
[351961372,1738861876847,-1271.81,0.00018628,2]
[351961373,1738861876857,-708.72,0.00018628,2]
[351961374,1738861876867,-791.7,0.00018628,2]
[351961375,1738861876876,-1069.89,0.00018628,2]
[351961376,1738861876886,-1042.41,0.00018628,2]
[351961377,1738861876898,-957.73,0.00018628,2]
[351961378,1738861876907,-1571.35,0.00018628,2]
[351961379,1738861876916,-1606.61,0.00018628,2]
[351961380,1738861876926,-519.25,0.00018628,2]
[351961381,1738861876935,-1542.73,0.00018628,2]
[351961382,1738861876945,-692.64,0.00018628,2]
[351961383,1738861876954,-657.02,0.00018628,2]
[351961384,1738861876964,-584.58,0.00018628,2]
[351961385,1738861876973,-1586.74,0.00018628,2]
[351961386,1738861876982,-578.78,0.00018628,2]
[351961387,1738861876991,-1730.87,0.00018628,2]
[351961388,1738861877001,-500.0,0.00018628,2]
[351961389,1738861877011,-681.25,0.00018628,2]
[351961390,1738861877020,-682.56,0.00018628,2]
[351961391,1738861877030,-500.0,0.00018628,2]
[351961392,1738861877039,-1123.68,0.00018628,2]
[351961393,1738861877049,-500.0,0.00018628,2]
[351961394,1738861877059,-839.75,0.00018628,2]
[351961395,1738861877069,-1377.35,0.00018628,2]
[351961396,1738861877079,-1194.33,0.00018628,2]
[351961397,1738861877089,-742.25,0.00018628,2]
[351961398,1738861877099,-528.18,0.00018628,2]
[351961399,1738861877109,-2239.71,0.00018628,2]
[351961400,1738861877119,-729.85,0.00018628,2]
[351961401,1738861877129,-500.0,0.00018628,2]
[351961402,1738861877138,-1212.61,0.00018628,2]
[351961403,1738861877151,-500.0,0.00018628,2]
[351961404,1738861877161,-514.18,0.00018628,2]
[351961405,1738861877171,-689.8,0.00018628,2]
[351961406,1738861877180,-533.13,0.00018628,2]
[351961407,1738861877190,-500.0,0.00018628,2]
[351961408,1738861877199,-929.26,0.00018628,2]
[351961409,1738861877209,-738.95,0.00018628,2]
[351961410,1738861877219,-539.89,0.00018628,2]
[351961411,1738861877229,-500.0,0.00018628,2]
[351961412,1738861877240,-654.59,0.00018628,2]
[351961413,1738861877250,-766.1,0.00018628,2]
[351961414,1738861877260,-1727.76,0.00018628,2]
[351961415,1738861877272,-2394.19,0.00018628,2]
[351961416,1738861877290,-500.0,0.00018628,2]
[351961417,1738861877299,-605.86,0.00018628,2]
[351961418,1738861877310,-651.71,0.00018628,2]
[351961419,1738861877320,-500.0,0.00018628,2]
[351961420,1738861877331,-500.0,0.00018628,2]
[351961421,1738861877341,-1000.0,0.00018628,2]
[351961422,1738861877353,-500.0,0.00018628,2]
[351961423,1738861877364,-1210.31,0.00018628,2]
[351961424,1738861877374,-721.6,0.00018628,2]
[351961425,1738861877383,-504.71,0.00018628,2]
[351961426,1738861877396,-500.0,0.00018628,2]
[351961427,1738861877406,-1238.99,0.00018628,2]
[351961428,1738861877415,-862.22,0.00018628,2]
[351961429,1738861877424,-500.0,0.00018628,2]
[351961430,1738861877433,-646.48,0.00018629,2]
[351961431,1738861877443,-882.64,0.00018629,2]
[351961432,1738861877452,-500.0,0.00018629,2]
[351961433,1738861877460,-1322.52,0.00018629,2]
[351961434,1738861877469,-500.0,0.00018629,2]
[351961435,1738861877478,-860.43,0.00018629,2]
[351961436,1738861877487,-618.33,0.00018629,2]
[351961437,1738861877496,-882.18,0.00018629,2]
[351961438,1738861877505,-1093.09,0.00018629,2]
[351961439,1738861877513,-801.19,0.00018629,2]
[351961440,1738861877522,-735.64,0.00018629,2]
[351961441,1738861877530,-773.55,0.00018629,2]
[351961442,1738861877539,-512.91,0.00018629,2]
[351961443,1738861877548,-550.45,0.00018629,2]
[351961444,1738861877557,-647.51,0.00018629,2]
[351961445,1738861877566,-612.38,0.00018629,2]
[351961446,1738861877577,-500.0,0.00018629,2]
[351961447,1738861877586,-980.57,0.00018629,2]
[351961448,1738861877595,-515.98,0.00018629,2]
[351961449,1738861877604,-795.41,0.00018629,2]
[351961450,1738861877614,-500.0,0.00018629,2]
[351961451,1738861877623,-1166.1,0.00018629,2]
[351961452,1738861877633,-841.63,0.00018629,2]
[351961453,1738861877643,-564.64,0.00018629,2]
[351961454,1738861877653,-842.75,0.00018629,2]
[351961455,1738861877663,-549.06,0.00018629,2]
[351961456,1738861877672,-500.0,0.00018629,2]
[351961457,1738861877682,-838.7,0.00018629,2]
[351961458,1738861877691,-871.1,0.00018629,2]
[351961459,1738861877700,-500.0,0.00018629,2]
[351961460,1738861877709,-549.37,0.00018629,2]
[351961461,1738861877719,-888.81,0.00018629,2]
[351961462,1738861877728,-635.82,0.00018629,2]
[351961463,1738861877737,-500.0,0.00018629,2]
[351961464,1738861877747,-758.24,0.00018629,2]
[351961465,1738861877756,-887.86,0.00018629,2]
[351961466,1738861877766,-751.66,0.00018629,2]
[351961467,1738861877775,-817.88,0.00018629,2]
[351961468,1738861877784,-572.42,0.00018629,2]
[351961469,1738861877794,-500.0,0.00018629,2]
[351961470,1738861877803,-754.86,0.00018629,2]
[351961471,1738861877813,-678.78,0.00018629,2]
[351961472,1738861877822,-661.11,0.00018629,2]
[351961473,1738861877831,-500.0,0.00018629,2]
[351961474,1738861877840,-500.0,0.00018629,2]
[351961475,1738861877850,-500.0,0.00018629,2]
[351961476,1738861877859,-500.0,0.00018629,2]
[351961477,1738861877869,-500.0,0.00018629,2]
[351961478,1738861877879,-505.27,0.00018629,2]
[351961479,1738861877888,-500.0,0.00018629,2]
[351961480,1738861877903,-500.0,0.00018629,2]
[351961481,1738861877913,-542.84,0.00018629,2]
[351961482,1738861877922,-500.0,0.00018629,2]
[351961483,1738861877932,-568.48,0.00018629,2]
[351961484,1738861877942,-415.6958394,0.00018629,2]
[351961485,1738861877952,-810.69,0.00018629,2]
[351961486,1738861877961,-500.0,0.00018629,2]
[351961487,1738861877971,-200.0,0.00018725,2]
[351961488,1738861877981,-200.0,0.00018725,2]
[351961489,1738861877990,-200.0,0.00018725,2]
[351961490,1738861878000,-200.0,0.00018725,2]
[351961491,1738861878010,-2000.0,0.00018751,2]
[351961492,1738861878019,-677.64,0.00018764,2]
[351961493,1738861878030,-2320.36,0.00018764,2]
[351961494,1738861878040,-1057.3,0.00018764,2]
[351961495,1738861878050,-1390.44,0.00018764,2]
[351961496,1738861878060,-154.628653,0.00018764,2]
[351961497,1738861878071,-597.52114661,0.00018764,2]
[351961498,1738861878372,-104.74885339,0.00018764,2]
[351961499,1738861878383,-632.69989221,0.00018764,2]
[351961500,1738861878575,-698.06010779,0.00018764,2]
[351961501,1738861878585,-1549.77,0.00018764,2]
[351961502,1738861878595,-1149.66,0.00018764,2]
[351961503,1738861878605,-500.0,0.00018764,2]
[351961504,1738861878615,-1130.88,0.00018764,2]
[351961505,1738861878625,-1058.42,0.00018764,2]
[351961506,1738861878634,-591.92,0.00018764,2]
[351961507,1738861878646,-919.01,0.00018764,2]
[351961508,1738861878655,-1259.14,0.00018764,2]
[351961509,1738861878665,-2902.47,0.00018764,2]
[351961510,1738861878676,-1080.79,0.00018764,2]
[351961511,1738861878686,-1591.11,0.00018764,2]
[351961512,1738861878696,-1302.97,0.00018764,2]
[351961513,1738861878706,-1528.37,0.00018764,2]
[351961514,1738861878715,-1378.0,0.00018764,2]
[351961515,1738861878725,-248.21582496,0.00018764,2]
[351961516,1738861878738,-1484.39999997,0.00018764,2]
[351961517,1738861878961,-2254.030016,0.00017611,2]
[351961518,1738861878974,-1573.250001,0.00017611,2]
[351961519,1738861878986,-2159.44732438,0.00017611,2]
[351961520,1738861879002,-2738.94129097,0.00017611,2]
[351961521,1738861879026,-500.0,0.00017258,2]
[351961522,1738861879036,-1538.13478849,0.00017611,2]
[351961523,1738861879046,-1533.47,0.00017942,2]
[351961524,1738861879055,-1533.47,0.00018079,2]
[351961525,1738861879065,-1533.47,0.00018216,2]
[351961526,1738861879074,-1533.47,0.00018353,2]
[351961527,1738861879084,-1533.47,0.0001849,2]
[351961528,1738861879094,-1533.47,0.00018627,2]
[351961529,1738861879104,-196.09417507,0.00018764,2]
[351961530,1738861879114,-1701.03,0.00018764,2]
[351961531,1738861879124,-1215.91,0.00018764,2]
[351961532,1738861879134,-1505.03,0.00018764,2]
[351961533,1738861879146,-3013.77,0.00018764,2]
[351961534,1738861879157,-936.5,0.00018764,2]
[351961535,1738861879167,-1793.39,0.00018764,2]
[351961536,1738861879177,-1477.06,0.00018764,2]
[351961537,1738861879188,-1577.4,0.00018764,2]
[351961538,1738861879199,-5300.74,0.00018764,2]
[351961539,1738861879209,-1169.73,0.00018764,2]
[351961540,1738861879219,-2574.15,0.00018764,2]
[351961541,1738861879229,-2515.4,0.00018764,2]
[351961542,1738861879239,-2027.32,0.00018764,2]
[351961543,1738861879248,-2110.85,0.00018764,2]
[351961544,1738861879257,-1476.55,0.00018764,2]
[351961545,1738861879267,-1529.46,0.00018764,2]
[351961546,1738861879281,-2849.47,0.00018764,2]
[351961547,1738861879291,-1830.91,0.00018764,2]
[351961548,1738861879300,-3547.39,0.00018764,2]
[351961549,1738861879310,-1971.2,0.00018764,2]
[351961550,1738861879322,-1234.07,0.00018764,2]
[351961551,1738861879332,-500.0,0.00018764,2]
[351961552,1738861879343,-1544.59,0.00018764,2]
[351961553,1738861879355,-1656.43,0.00018764,2]
[351961554,1738861879365,-1394.51,0.00018764,2]
[351961555,1738861879376,-3743.69,0.00018764,2]
[351961556,1738861879386,-963.12,0.00018764,2]
[351961557,1738861879398,-1700.26,0.00018764,2]
[351961558,1738861879409,-1311.59,0.00018764,2]
[351961559,1738861879419,-1736.78,0.00018764,2]
[351961560,1738861879429,-1017.17,0.00018764,2]
[351961561,1738861879439,-1533.47,0.00018764,2]
[351961562,1738861879449,-568.39,0.00018765,2]
[351961563,1738861879459,-500.0,0.00018765,2]
[351961564,1738861879468,-1104.41,0.00018765,2]
[351961565,1738861879480,-1065.42,0.00018765,2]
[351961566,1738861879490,-689.15,0.00018765,2]
[351961567,1738861879501,-362.68255588,0.00018765,2]
[351961568,1738861879511,-500.0,0.00018765,2]
[351961569,1738861879520,-500.0,0.00018765,2]
[351961570,1738861879530,-1002.74,0.00018765,2]
[351961571,1738861879540,-692.54,0.00018765,2]
[351961572,1738861879550,-738.1,0.00018765,2]
[351961573,1738861879560,-595.37,0.00018765,2]
[351961574,1738861879570,-500.0,0.00018765,2]
[351961575,1738861879580,-863.61,0.00018765,2]
[351961576,1738861879590,-645.84,0.00018765,2]
[351961577,1738861879599,-500.0,0.00018765,2]
[351961578,1738861879610,-596.44,0.00018765,2]
[351961579,1738861879620,-800.76,0.00018765,2]
[351961580,1738861879630,-777.26,0.00018765,2]
[351961581,1738861879640,-500.0,0.00018765,2]
[351961582,1738861879653,-548.07,0.00018765,2]
[351961583,1738861879663,-500.0,0.00018765,2]
[351961584,1738861879673,-500.0,0.00018765,2]
[351961585,1738861879682,-672.55,0.00018765,2]
[351961586,1738861879692,-500.0,0.00018765,2]
[351961587,1738861879701,-874.6,0.00018765,2]
[351961588,1738861879711,-642.87,0.00018765,2]
[351961589,1738861879721,-607.11,0.00018765,2]
[351961590,1738861879730,-500.0,0.00018765,2]
[351961591,1738861879739,-500.0,0.00018765,2]
[351961592,1738861879750,-1058.07,0.00018765,2]
[351961593,1738861879760,-514.1,0.00018765,2]
[351961594,1738861879769,-2325.74,0.00018765,2]
[351961595,1738861879778,-577.77,0.00018765,2]
[351961596,1738861879788,-500.0,0.00018765,2]
[351961597,1738861879798,-500.0,0.00018765,2]
[351961598,1738861879808,-500.0,0.00018765,2]
[351961599,1738861879817,-500.0,0.00018765,2]
[351961600,1738861879827,-910.94,0.00018765,2]
[351961601,1738861879836,-589.83,0.00018765,2]
[351961602,1738861879845,-500.0,0.00018765,2]
[351961603,1738861879855,-500.0,0.00018765,2]
[351961604,1738861879864,-500.0,0.00018765,2]
[351961605,1738861879873,-785.95,0.00018765,2]
[351961606,1738861879883,-812.17,0.00018765,2]
[351961607,1738861879895,-500.0,0.00018765,2]
[351961608,1738861879904,-970.04,0.00018765,2]
[351961609,1738861879914,-550.87,0.00018765,2]
[351961610,1738861879925,-500.0,0.00018765,2]
[351961611,1738861879935,-622.89,0.00018765,2]
[351961612,1738861879944,-500.0,0.00018765,2]
[351961613,1738861879954,-940.72,0.00018765,2]
[351961614,1738861879964,-500.0,0.00018765,2]
[351961615,1738861879973,-527.23,0.00018765,2]
[351961616,1738861879983,-687.44,0.00018765,2]
[351961617,1738861879992,-865.53,0.00018765,2]
[351961618,1738861880001,-646.69,0.00018765,2]
[351961619,1738861880011,-500.0,0.00018765,2]
[351961620,1738861880021,-500.0,0.00018765,2]
[351961621,1738861880030,-1138.12,0.00018765,2]
[351961622,1738861880040,-1066.17,0.00018765,2]
[351961623,1738861880049,-577.5800305,0.00018765,2]
[351961624,1738861880058,-500.0,0.00018765,2]
[351961625,1738861880068,-500.0,0.00018765,2]
[351961626,1738861880077,-1133.21,0.00018765,2]
[351961627,1738861880087,-1379.38,0.00018765,2]
[351961628,1738861880097,-1088.33,0.00018765,2]
[351961629,1738861880107,-2580.85,0.00018765,2]
[351961630,1738861880117,-500.0,0.00018765,2]
[351961631,1738861880126,-507.71,0.00018765,2]
[351961632,1738861880136,-570.24,0.00018765,2]
[351961633,1738861880147,-500.0,0.00018765,2]
[351961634,1738861880157,-829.91,0.00018765,2]
[351961635,1738861880166,-345.3513578,0.00018765,2]
[351961636,1738861880176,-501.42,0.00018765,2]
[351961637,1738861880185,-1418.09,0.00018765,2]
[351961638,1738861880195,-699.42,0.00018765,2]
[351961639,1738861880205,-1474.87,0.00018765,2]
[351961640,1738861880220,-500.0,0.00018765,2]
[351961641,1738861880236,-953.52,0.00018765,2]
[351961642,1738861880245,-500.0,0.00018765,2]
[351961643,1738861880255,-500.0,0.00018765,2]
[351961644,1738861880264,-902.61,0.00018765,2]
[351961645,1738861880275,-500.0,0.00018765,2]
[351961646,1738861880287,-1661.17,0.00018765,2]
[351961647,1738861880296,-1847.77,0.00018765,2]